bitfinex/quotes_BTCUSD_20251201
["timestamp","ask_amount","ask_price","bid_price","bid_amount"]
[1764557123114,0.72877927,86881.0,86880.0,0.0022]
[1764557123309,0.5646687,86851.0,86840.0,0.0002]
[1764557123545,0.6215287,86851.0,86840.0,0.0002]
[1764557123943,0.65612927,86851.0,86850.0,0.00177945]
[1764557124529,0.65612927,86851.0,86850.0,0.00217459]
[1764557124751,0.6805072,86851.0,86850.0,0.00217459]
[1764557124930,0.6805072,86851.0,86850.0,0.00317459]
[1764557124931,0.6825072,86851.0,86850.0,0.00317459]
[1764557125334,0.65076927,86851.0,86850.0,0.00317459]
[1764557125587,0.07024926,86851.0,86850.0,0.00317459]
[1764557125820,0.06824926,86851.0,86850.0,0.00217459]
[1764557126020,0.00736,86851.0,86850.0,0.02657353]
[1764557126147,0.01334,86851.0,86850.0,0.00317459]
[1764557126399,0.07325926,86851.0,86850.0,0.00317459]
[1764557126624,0.06589926,86851.0,86850.0,0.00317459]
[1764557126845,0.02472926,86851.0,86850.0,0.00317459]
[1764557127049,0.2961787,86851.0,86850.0,0.00317459]
[1764557127204,0.3035387,86851.0,86850.0,0.00317459]
[1764557127608,0.2985387,86851.0,86850.0,0.00217459]
[1764557128035,0.2995387,86851.0,86850.0,0.00217459]
[1764557128234,0.2985387,86851.0,86850.0,0.00217459]
[1764557128671,0.3015387,86851.0,86850.0,0.00217459]
[1764557128864,0.07125926,86851.0,86850.0,0.00217459]
[1764557129082,0.06389926,86851.0,86850.0,0.00217459]
[1764557129244,0.07125926,86851.0,86850.0,0.00217459]
[1764557130488,0.02272926,86851.0,86850.0,0.00217459]
[1764557130691,0.003,86851.0,86850.0,0.02657308]
[1764557130895,0.02174926,86851.0,86850.0,0.02657308]
[1764557131113,0.02174926,86851.0,86850.0,0.00217459]
[1764557131321,0.01036,86851.0,86850.0,0.00217459]
[1764557131523,0.01036,86851.0,86850.0,0.23245668]
[1764557131916,0.01036,86851.0,86850.0,0.00217459]
[1764557132113,0.02174926,86851.0,86850.0,0.23245668]
[1764557132319,0.01438926,86851.0,86850.0,0.23245668]
[1764557132558,0.003,86851.0,86850.0,0.31015871]
[1764557132741,0.01036,86851.0,86850.0,0.31015871]
[1764557133200,0.003,86851.0,86850.0,0.31015871]
[1764557133384,0.01036,86851.0,86850.0,0.31015871]
[1764557133592,0.01036,86851.0,86850.0,0.37633871]
[1764557133788,0.01138926,86859.0,86858.0,0.01151304]
[1764557133992,0.01874926,86859.0,86858.0,0.29128272]
[1764557134753,0.05686,86859.0,86855.0,0.24178]
[1764557134899,0.01187926,86856.0,86855.0,0.24178]
[1764557135524,0.003,86859.0,86858.0,0.23026088]
[1764557135733,0.00736,86859.0,86858.0,0.38611668]
[1764557136134,0.00785,86859.0,86858.0,0.23026088]
[1764557136335,0.01923926,86859.0,86858.0,0.23026088]
[1764557137397,0.01874926,86859.0,86858.0,0.23026088]
[1764557137841,0.01874926,86859.0,86851.0,0.01151397]
[1764557137842,0.0115137,86853.0,86850.0,0.00059514]
[1764557138072,0.3178087,86851.0,86850.0,0.00059514]
[1764557138427,0.66583631,86851.0,86850.0,0.00059514]
[1764557139372,0.66943847,86851.0,86850.0,0.00059514]
[1764557139715,0.66943847,86851.0,86850.0,0.00217459]
[1764557140233,0.7122179,86851.0,86850.0,0.00217459]
[1764557140568,0.67143847,86851.0,86850.0,0.00217459]
[1764557141073,0.67243847,86851.0,86850.0,0.00217459]
[1764557141299,0.73391024,86851.0,86850.0,0.00217459]
[1764557141566,0.67243847,86851.0,86850.0,0.00217459]
[1764557141762,0.97911024,86851.0,86850.0,0.00217459]
[1764557141946,0.91763847,86851.0,86850.0,0.00217459]
[1764557142493,0.24169522,86841.0,86840.0,0.0002]
[1764557142797,0.15068242,86841.0,86840.0,0.0002]
[1764557143328,0.10919903,86841.0,86840.0,0.01052323]
[1764557143641,0.15007505,86841.0,86840.0,0.01052323]
[1764557144222,0.11181903,86841.0,86840.0,0.01052323]
[1764557145013,0.11281903,86841.0,86840.0,0.0002]
[1764557145827,0.10545921,86841.0,86840.0,0.0002]
[1764557146029,0.11281921,86841.0,86840.0,0.0002]
[1764557147865,0.11219921,86841.0,86840.0,0.0002]
[1764557148073,0.11219921,86841.0,86840.0,0.23082462]
[1764557148466,0.04975921,86841.0,86840.0,0.23082462]
[1764557148668,0.09863921,86841.0,86840.0,0.23082462]
[1764557149290,0.04239921,86841.0,86840.0,0.31257643]
[1764557149490,0.04975921,86841.0,86840.0,0.31257643]
[1764557149885,0.04975921,86841.0,86840.0,0.08226782]
[1764557150088,0.08835995,86841.0,86840.0,0.00051601]
[1764557150421,0.13770127,86841.0,86840.0,0.00051601]
[1764557150624,0.13870127,86841.0,86840.0,0.00051601]
[1764557151017,0.42274921,86841.0,86840.0,0.00051601]
[1764557151219,0.01151596,86836.0,86833.0,0.08]
[1764557151416,0.07474926,86834.0,86833.0,0.08]
[1764557151595,0.10275921,86834.0,86833.0,0.08]
[1764557151800,0.11376921,86834.0,86833.0,0.08]
[1764557152376,0.43676921,86834.0,86833.0,0.08]
[1764557153230,0.51861737,86834.0,86833.0,0.08]
[1764557153407,0.43676921,86834.0,86833.0,0.08]
[1764557153772,0.43776921,86834.0,86833.0,0.08]
[1764557154437,0.44076921,86834.0,86833.0,0.08]
[1764557155202,0.11776921,86834.0,86833.0,0.088]
[1764557155423,0.12512921,86834.0,86833.0,0.08]
[1764557155886,0.10675921,86834.0,86833.0,0.08]
[1764557156097,0.11411921,86834.0,86833.0,0.08]
[1764557156596,0.10675921,86834.0,86833.0,0.08]
[1764557156798,0.11411921,86834.0,86833.0,0.08]
[1764557157223,0.34444373,86834.0,86833.0,0.08]
[1764557159363,0.40574839,86834.0,86833.0,0.08]
[1764557161286,0.34444373,86834.0,86833.0,0.08]
[1764557161494,0.40574425,86834.0,86833.0,0.08]
[1764557161702,0.39435499,86834.0,86833.0,0.08]
[1764557162030,0.40574425,86834.0,86833.0,0.08]
[1764557162554,0.39838425,86834.0,86833.0,0.08]
[1764557162752,0.03200995,86834.0,86833.0,0.08]
[1764557162978,0.08981159,86834.0,86833.0,0.08]
[1764557163181,0.4372192,86834.0,86833.0,0.08]
[1764557163378,0.49855016,86834.0,86833.0,0.08]
[1764557163576,0.49455016,86834.0,86833.0,0.08]
[1764557163911,0.4332192,86834.0,86833.0,0.01774041]
[1764557164157,0.4352192,86834.0,86833.0,0.01774041]
[1764557164334,0.4332192,86834.0,86833.0,0.01774041]
[1764557164550,0.6124451,86834.0,86833.0,0.01774041]
[1764557164756,0.6124451,86834.0,86800.0,0.005]
[1764557164757,0.24192931,86803.0,86800.0,0.005]
[1764557164927,0.33115135,86801.0,86800.0,0.00511852]
[1764557165129,0.35916129,86801.0,86800.0,0.00511852]
[1764557165330,0.39070783,86801.0,86800.0,0.00511852]
[1764557165500,0.36004129,86801.0,86800.0,0.00511852]
[1764557165726,0.36740129,86801.0,86800.0,0.00511852]
[1764557165924,0.69040129,86801.0,86800.0,0.00511852]
[1764557166325,0.69140129,86801.0,86800.0,0.00511852]
[1764557166534,0.75273438,86801.0,86800.0,0.00511852]
[1764557166759,0.69140129,86801.0,86800.0,0.00511852]
[1764557167049,0.6392151,86801.0,86760.0,0.0002]
[1764557167176,0.34354758,86761.0,86760.0,0.00059529]
[1764557167377,0.35451295,86761.0,86760.0,0.00059529]
[1764557167583,0.37937827,86761.0,86760.0,0.00059529]
[1764557168181,0.3757729,86761.0,86760.0,0.00059529]
[1764557168380,0.12612532,86761.0,86760.0,0.00059529]
[1764557168614,0.01017,86766.0,86763.0,0.2420384]
[1764557168987,0.01017,86766.0,86764.0,0.0496207]
[1764557168988,0.01874926,86765.0,86764.0,0.0496207]
[1764557169205,0.00736,86765.0,86762.0,0.01152578]
[1764557169431,0.01138926,86764.0,86763.0,0.01152565]
[1764557169650,0.00736,86764.0,86763.0,0.01152565]
[1764557170120,0.01138926,86774.0,86772.0,0.01152445]
[1764557170283,0.00736,86773.0,86768.0,0.01152498]
[1764557170480,0.01138926,86765.0,86760.0,0.00059529]
[1764557170682,0.01138926,86773.0,86772.0,0.01152445]
[1764557171080,0.01152458,86771.0,86766.0,0.01152525]
[1764557171380,0.01187926,86765.0,86764.0,0.01152551]
[1764557171604,0.01138926,86761.0,86758.0,0.01152631]
[1764557171820,0.06775926,86761.0,86758.0,0.01152631]
[1764557172540,0.06775926,86761.0,86756.0,0.01152658]
[1764557172541,0.06873926,86761.0,86756.0,0.01152658]
[1764557172747,0.06873926,86761.0,86758.0,0.01152631]
[1764557173046,0.06973926,86761.0,86758.0,0.01152631]
[1764557173262,0.001,86761.0,86760.0,0.23111626]
[1764557173492,0.00836,86761.0,86760.0,0.23111626]
[1764557173767,0.001,86761.0,86760.0,0.30494491]
[1764557173969,0.00836,86761.0,86760.0,0.30494491]
[1764557174318,0.00836,86761.0,86760.0,0.23111626]
[1764557174955,0.00836,86761.0,86760.0,0.00059529]
[1764557175139,0.00736,86761.0,86760.0,0.00059529]
[1764557175426,0.001,86761.0,86760.0,0.41628835]
[1764557175635,0.00836,86761.0,86760.0,0.48558212]
[1764557175792,0.00836,86761.0,86760.0,0.48654238]
[1764557176446,0.00836,86761.0,86760.0,0.32542238]
[1764557176656,0.00836,86761.0,86760.0,0.00255555]
[1764557176949,0.05786,86761.0,86760.0,0.00255555]
[1764557177148,0.06924926,86761.0,86760.0,0.00255555]
[1764557177847,0.09365504,86761.0,86760.0,0.00255555]
[1764557178663,0.08529504,86761.0,86760.0,0.00155555]
[1764557178866,0.01238926,86761.0,86760.0,0.00155555]
[1764557179066,0.01974926,86761.0,86760.0,0.02707013]
[1764557179375,0.02274926,86761.0,86760.0,0.00255555]
[1764557179667,0.07124926,86761.0,86760.0,0.00255555]
[1764557180571,0.02223926,86761.0,86760.0,0.00255555]
[1764557180713,0.01036,86761.0,86760.0,0.00255555]
[1764557180916,0.01438926,86761.0,86760.0,0.00255555]
[1764557181154,0.02174926,86761.0,86760.0,0.02910918]
[1764557181355,0.07224926,86761.0,86760.0,0.02910918]
[1764557181667,0.07224926,86761.0,86760.0,0.00255555]
[1764557181668,0.07273926,86761.0,86760.0,0.00255555]
[1764557182094,0.09617204,86761.0,86760.0,0.00255555]
[1764557182231,0.09617204,86761.0,86760.0,0.00155555]
[1764557182232,0.09317204,86761.0,86760.0,0.00155555]
[1764557182768,0.09417204,86761.0,86760.0,0.00255555]
[1764557182959,0.09317204,86761.0,86760.0,0.00155555]
[1764557183286,0.09317204,86761.0,86760.0,0.00255555]
[1764557183287,0.09517204,86761.0,86760.0,0.00255555]
[1764557184282,0.46265975,86761.0,86760.0,0.00255555]
[1764557184499,0.42277784,86761.0,86760.0,0.00255555]
[1764557186715,0.01138926,86751.0,86750.0,0.0002]
[1764557186874,0.39815506,86751.0,86750.0,0.00031858]
[1764557187081,0.42258784,86751.0,86750.0,0.00031858]
[1764557187283,0.47230693,86751.0,86750.0,0.00031858]
[1764557187498,0.48369619,86751.0,86750.0,0.00031858]
[1764557187898,0.49205619,86751.0,86750.0,0.00031858]
[1764557188217,0.49205619,86751.0,86750.0,0.00131858]
[1764557188218,0.43294784,86751.0,86750.0,0.00131858]
[1764557188417,0.42558784,86751.0,86750.0,0.00131858]
[1764557188593,0.38125585,86751.0,86750.0,0.00131858]
[1764557188794,0.38065585,86751.0,86750.0,0.00131858]
[1764557189134,0.33253273,86751.0,86750.0,0.00131858]
[1764557189337,0.38065585,86751.0,86750.0,0.00131858]
[1764557189634,0.10934784,86751.0,86750.0,0.00131858]
[1764557189790,0.08491506,86751.0,86750.0,0.00131858]
[1764557189993,0.10934784,86751.0,86750.0,0.00131858]
[1764557190196,0.10934784,86751.0,86750.0,0.04986738]
[1764557190197,0.02743278,86751.0,86750.0,0.04986738]
[1764557190394,0.01036,86751.0,86750.0,0.04986738]
[1764557190631,0.01036,86751.0,86750.0,0.28041493]
[1764557190832,0.01036,86751.0,86750.0,0.23186613]
[1764557191187,0.02174926,86751.0,86750.0,0.23186613]
[1764557192085,0.003,86751.0,86750.0,0.23186613]
[1764557192288,0.003,86751.0,86750.0,0.39167613]
[1764557192489,0.003,86751.0,86750.0,0.32405869]
[1764557192891,0.002,86751.0,86750.0,0.32405869]
[1764557193811,0.31594643,86751.0,86750.0,0.00031858]
[1764557194010,0.31955215,86751.0,86750.0,0.00031858]
[1764557194129,0.32055215,86751.0,86750.0,0.00131858]
[1764557194501,0.23058742,86735.0,86734.0,0.01205818]
[1764557194653,0.27794468,86735.0,86734.0,0.01217679]
[1764557194851,0.35543468,86735.0,86734.0,0.01217679]
[1764557196890,0.35643468,86735.0,86734.0,0.01217679]
[1764557197078,0.36343468,86735.0,86734.0,0.01217679]
[1764557198027,0.28594468,86735.0,86734.0,0.01217679]
[1764557198246,0.33495468,86735.0,86734.0,0.01217679]
[1764557199016,0.33395468,86735.0,86734.0,0.01217679]
[1764557199348,0.33495468,86735.0,86734.0,0.01217679]
[1764557199995,0.10436726,86735.0,86734.0,0.01217679]
[1764557200203,0.09736726,86735.0,86734.0,0.01217679]
[1764557200400,0.10236726,86735.0,86734.0,0.01317679]
[1764557200610,0.11471589,86735.0,86734.0,0.01317679]
[1764557200809,0.05286726,86735.0,86734.0,0.06637939]
[1764557201815,0.04786726,86735.0,86734.0,0.06537939]
[1764557202060,0.04984726,86735.0,86734.0,0.24376687]
[1764557203131,0.04886726,86735.0,86734.0,0.24376687]
[1764557203551,0.02435498,86735.0,86734.0,0.24376687]
[1764557203891,0.02435498,86735.0,86734.0,0.01317679]
[1764557204174,0.07218036,86735.0,86734.0,0.01317679]
[1764557204363,0.002,86735.0,86734.0,0.52390976]
[1764557204721,0.002,86735.0,86734.0,0.46138677]
[1764557205394,0.002,86735.0,86734.0,0.36437677]
[1764557205762,0.002,86735.0,86734.0,0.46138677]
[1764557206577,0.02453811,86750.0,86734.0,0.06998669]
[1764557206721,0.00049,86735.0,86734.0,0.01217679]
[1764557207057,0.01974926,86735.0,86734.0,0.01317679]
[1764557207218,0.01974926,86735.0,86734.0,0.1514544]
[1764557207219,0.00836,86735.0,86734.0,0.1514544]
[1764557207617,0.05521121,86745.0,86742.0,0.23056881]
[1764557207819,0.00736,86744.0,86743.0,0.23056615]
[1764557208663,0.00736,86744.0,86743.0,0.38931615]
[1764557208842,0.00736,86744.0,86743.0,0.34212884]
[1764557209043,0.01874926,86744.0,86743.0,0.34212884]
[1764557209346,0.00736,86744.0,86743.0,0.34212884]
[1764557209772,0.01874926,86744.0,86743.0,0.34212884]
[1764557210407,0.01874926,86744.0,86740.0,0.0115287]
[1764557210408,0.01138926,86741.0,86740.0,0.0115287]
[1764557210566,0.01138926,86741.0,86740.0,0.2421002]
[1764557211368,0.00936,86744.0,86743.0,0.23156615]
[1764557211541,0.00936,86744.0,86743.0,0.29209615]
[1764557211542,0.002,86744.0,86743.0,0.29209615]
[1764557211795,0.002,86744.0,86743.0,0.56450181]
[1764557212363,0.002,86744.0,86743.0,0.88750181]
[1764557212561,11.5272,86751.0,86750.0,0.55354755]
[1764557212779,11.5272,86751.0,86750.0,0.66352755]
[1764557212980,11.5272,86751.0,86750.0,0.85275601]
[1764557213721,11.5282,86751.0,86750.0,0.53375601]
[1764557213866,11.53556,86751.0,86750.0,0.23454755]
[1764557214206,11.54694926,86751.0,86750.0,0.23454755]
[1764557214566,0.01152764,86748.0,86740.0,0.0115287]
[1764557214767,0.01017,86742.0,86740.0,0.0115287]
[1764557214964,0.02155926,86742.0,86740.0,0.24210221]
[1764557215370,0.02155926,86742.0,86741.0,0.09032317]
[1764557216490,0.02455926,86742.0,86741.0,0.09132317]
[1764557217285,0.02455926,86742.0,86741.0,0.0797946]
[1764557217487,0.02455926,86742.0,86741.0,0.001]
[1764557217845,0.07405926,86742.0,86741.0,0.001]
[1764557220145,0.0115291,86737.0,86730.0,0.01153003]
[1764557220350,0.0115291,86737.0,86727.0,0.01153043]
[1764557220351,0.01187926,86735.0,86727.0,0.01153043]
[1764557220556,0.01187926,86735.0,86726.0,0.01153056]
[1764557220772,0.06088926,86735.0,86726.0,0.01153056]
[1764557220977,0.01187926,86735.0,86721.0,0.01153123]
[1764557221292,0.01517,86742.0,86734.0,0.24276474]
[1764557221500,0.01517,86742.0,86739.0,0.01152883]
[1764557221678,0.005,86742.0,86741.0,0.06053]
[1764557221877,0.00736,86742.0,86740.0,0.23057199]
[1764557222081,0.01874926,86742.0,86740.0,0.23057199]
[1764557222293,0.00736,86742.0,86740.0,0.23057199]
[1764557222504,0.01138926,86749.0,86748.0,0.01152764]
[1764557222746,0.01138926,86748.0,86745.0,0.01152804]
[1764557222944,0.01138926,86748.0,86746.0,0.23055818]
[1764557223118,0.00736,86749.0,86748.0,0.23055286]
[1764557223534,0.00736,86749.0,86748.0,0.30812417]
[1764557223734,0.01874926,86749.0,86748.0,0.07757131]
[1764557223935,0.01138926,86748.0,86747.0,0.23055438]
[1764557224525,0.00736,86749.0,86746.0,0.0115279]
[1764557224723,0.01138926,86747.0,86746.0,0.0115279]
[1764557224924,0.00736,86749.0,86747.0,0.23055552]
[1764557225121,0.001,86748.0,86747.0,0.23055552]
[1764557225325,11.5272,86751.0,86750.0,0.23054755]
[1764557225566,11.53456,86751.0,86750.0,0.29107755]
[1764557225965,11.53456,86751.0,86750.0,0.38929755]
[1764557226381,11.5272,86751.0,86750.0,0.38929755]
[1764557227023,11.5312,86751.0,86750.0,0.39029755]
[1764557227239,11.5312,86751.0,86750.0,0.50400046]
[1764557228197,11.5272,86751.0,86750.0,0.50300046]
[1764557228597,11.5282,86751.0,86750.0,0.50400046]
[1764557229286,11.5282,86751.0,86750.0,0.82700046]
[1764557230527,11.5282,86751.0,86750.0,0.29207755]
[1764557230768,11.5282,86751.0,86750.0,0.23154755]
[1764557230914,11.5282,86751.0,86750.0,0.29207755]
[1764557231278,11.5272,86751.0,86750.0,0.29107755]
[1764557231414,11.5272,86751.0,86750.0,0.23054755]
[1764557231604,11.5272,86751.0,86750.0,0.32938063]
[1764557231605,11.5282,86751.0,86750.0,0.32938063]
[1764557231955,11.5272,86751.0,86750.0,0.38791063]
[1764557232234,11.5282,86751.0,86750.0,0.38991063]
[1764557232640,11.5282,86751.0,86745.0,0.01152804]
[1764557232641,0.23057147,86741.0,86740.0,1.0]
[1764557232860,0.62135073,86741.0,86740.0,1.0]
[1764557233064,0.6495409,86741.0,86740.0,1.0]
[1764557233263,0.66978474,86741.0,86740.0,1.0]
[1764557233393,0.6505009,86741.0,86740.0,1.0]
[1764557233599,0.69140945,86741.0,86740.0,1.0]
[1764557234214,0.6505009,86741.0,86740.0,1.0]
[1764557234733,0.6525009,86741.0,86740.0,1.001]
[1764557234948,0.6525009,86741.0,86740.0,1.0]
[1764557235147,0.6515009,86741.0,86740.0,1.0]
[1764557235331,0.6595009,86741.0,86740.0,1.0]
[1764557237553,0.6521409,86741.0,86740.0,1.10121768]
[1764557237765,0.65589422,86741.0,86740.0,1.0]
[1764557238166,0.64757422,86741.0,86740.0,1.0]
[1764557238351,0.33193422,86741.0,86740.0,1.0]
[1764557238547,0.28290422,86741.0,86740.0,1.0]
[1764557238998,0.25832073,86741.0,86740.0,1.0]
[1764557239233,0.009,86741.0,86740.0,1.10352358]
[1764557239513,0.01636,86741.0,86740.0,1.10352358]
[1764557239881,0.01636,86741.0,86740.0,1.06548]
[1764557240083,0.01536,86741.0,86740.0,1.06548]
[1764557240286,0.01536,86741.0,86740.0,1.0]
[1764557240476,0.01974926,86741.0,86740.0,1.0]
[1764557240988,0.07624926,86741.0,86740.0,1.0]
[1764557241402,0.41238862,86741.0,86740.0,1.0]
[1764557241613,0.48990787,86741.0,86740.0,0.9995]
[1764557242229,0.48190787,86741.0,86740.0,0.9995]
[1764557242629,0.49290787,86741.0,86740.0,0.9995]
[1764557243037,0.49190787,86741.0,86740.0,0.9995]
[1764557243449,0.49390787,86741.0,86740.0,0.9995]
[1764557243653,0.48390787,86741.0,86740.0,0.9995]
[1764557244018,0.49490787,86741.0,86740.0,0.9995]
[1764557244928,0.60861078,86741.0,86740.0,0.9995]
[1764557245132,0.5562665,86741.0,86740.0,0.9995]
[1764557246484,0.49374351,86741.0,86740.0,0.9995]
[1764557246706,3.64229087,86741.0,86740.0,0.43888304]
[1764557246845,3.11219387,86741.0,86740.0,0.43888304]
[1764557247050,0.49490787,86741.0,86740.0,0.43888304]
[1764557247303,0.48390787,86741.0,86740.0,0.43888304]
[1764557247617,2.10060687,86741.0,86740.0,0.43888304]
[1764557247819,2.46427387,86741.0,86740.0,0.43888304]
[1764557247991,0.48390787,86741.0,86740.0,0.43888304]
[1764557248188,0.55358742,86735.0,86734.0,0.01217679]
[1764557248455,0.6421123,86735.0,86734.0,0.01217679]
[1764557248800,2.0223643,86735.0,86734.0,0.01217679]
[1764557248919,2.2675643,86735.0,86734.0,0.01217679]
[1764557249121,1.99327829,86735.0,86734.0,0.01217679]
[1764557249431,0.70512529,86735.0,86734.0,0.01217679]
[1764557249629,1.92780629,86735.0,86734.0,0.01217679]
[1764557249840,1.92780629,86735.0,86697.0,0.24232192]
[1764557249841,0.23068582,86698.0,86697.0,0.0001]
[1764557250021,0.34117508,86698.0,86697.0,0.00021866]
[1764557250430,0.08450926,86698.0,86697.0,0.00021866]
[1764557250848,0.01874926,86698.0,86697.0,0.00021866]
[1764557251044,0.01138926,86698.0,86697.0,0.00021866]
[1764557251292,0.01538926,86698.0,86697.0,0.02661782]
[1764557251622,0.01138926,86715.0,86706.0,0.01153322]
[1764557251811,0.00736,86714.0,86706.0,0.01153322]
[1764557251958,0.01138926,86712.0,86711.0,0.01153256]
[1764557252154,0.01138926,86712.0,86707.0,0.04604]
[1764557252402,0.01138926,86710.0,86709.0,0.24218938]
[1764557253360,0.01138926,86704.0,86703.0,0.24220442]
[1764557253564,0.01874926,86704.0,86703.0,0.24220442]
[1764557254405,0.00736,86704.0,86703.0,0.30581442]
[1764557254620,0.00736,86704.0,86701.0,0.01153389]
[1764557254847,0.01138926,86701.0,86700.0,0.01153402]
[1764557255254,0.24270303,86701.0,86697.0,0.00021866]
[1764557255455,0.01187926,86698.0,86697.0,0.00021866]
[1764557256902,0.06088926,86698.0,86697.0,0.00021866]
[1764557257227,0.29157508,86698.0,86697.0,0.00021866]
[1764557257483,0.01687926,86698.0,86697.0,0.00021866]
[1764557257657,0.06588926,86698.0,86697.0,0.04853419]
[1764557257861,0.01687926,86698.0,86697.0,0.04853419]
[1764557258240,0.06588926,86698.0,86697.0,0.00021866]
[1764557258447,0.07324926,86698.0,86697.0,0.00021866]
[1764557258853,0.02423926,86698.0,86697.0,0.00021866]
[1764557259049,0.01236,86698.0,86697.0,0.00021866]
[1764557259497,0.02423926,86698.0,86697.0,0.00021866]
[1764557261014,0.25492508,86698.0,86697.0,0.00021866]
[1764557261821,0.005,86698.0,86697.0,0.15416866]
[1764557262025,0.01236,86698.0,86697.0,0.15416866]
[1764557263001,0.01285,86698.0,86697.0,0.00021866]
[1764557263202,0.02374926,86698.0,86697.0,0.00021866]
[1764557264173,0.02423926,86698.0,86697.0,0.00021866]
[1764557264376,0.02374926,86698.0,86697.0,0.00021866]
[1764557264515,0.02423926,86698.0,86697.0,0.00021866]
[1764557264719,0.25492508,86698.0,86697.0,0.00021866]
[1764557264938,0.30393508,86698.0,86697.0,0.00021866]
[1764557265143,0.32845731,86698.0,86697.0,0.00021866]
[1764557267889,0.33206555,86698.0,86697.0,0.00021866]
[1764557268835,0.32706555,86698.0,86697.0,0.00021866]
[1764557269674,0.35772402,86698.0,86697.0,0.00021866]
[1764557269920,0.33406555,86698.0,86697.0,0.00021866]
[1764557270336,0.64567629,86698.0,86697.0,0.00021866]
[1764557270484,0.56509371,86691.0,86690.0,0.01]
[1764557270695,0.59371418,86691.0,86690.0,0.01]
[1764557270893,0.02813047,86691.0,86690.0,0.01]
[1764557271131,0.0223575,86691.0,86690.0,0.01]
[1764557271367,0.00360824,86691.0,86690.0,0.07391]
[1764557271700,0.01138926,86694.0,86693.0,0.23069913]
[1764557271857,0.01138926,86694.0,86693.0,0.06391]
[1764557272038,0.01138926,86694.0,86693.0,0.16151]
[1764557272039,0.00736,86694.0,86693.0,0.16151]
[1764557272456,0.00736,86694.0,86693.0,0.06391]
[1764557273248,0.01874926,86694.0,86693.0,0.06391]
[1764557273384,0.02174926,86694.0,86693.0,0.09219715]
[1764557273566,0.02174926,86694.0,86693.0,0.06491]
[1764557273766,0.01889482,86694.0,86690.0,0.01]
[1764557273973,0.01138926,86691.0,86690.0,0.01]
[1764557274869,0.01138926,86691.0,86690.0,0.07391]
[1764557275698,0.02452223,86696.0,86693.0,0.01153495]
[1764557275900,0.03596321,86701.0,86698.0,0.01153429]
[1764557276077,0.00736,86700.0,86698.0,0.30613011]
[1764557276282,0.00736,86700.0,86699.0,0.0484]
[1764557276498,0.01138926,86696.0,86695.0,0.01153469]
[1764557276669,0.01153469,86695.0,86690.0,0.011]
[1764557276870,0.0495,86696.0,86693.0,0.01153495]
[1764557277068,0.01138926,86694.0,86693.0,0.01153495]
[1764557277499,0.01138926,86695.0,86694.0,0.24223129]
[1764557277704,0.01138926,86697.0,86696.0,0.07544455]
[1764557277928,0.01499734,86697.0,86696.0,0.07544455]
[1764557279347,0.0149973,86697.0,86696.0,0.07544455]
[1764557280023,0.0169973,86697.0,86696.0,0.01253455]
[1764557280477,0.01338926,86697.0,86696.0,0.01253455]
[1764557280676,0.002,86697.0,86696.0,0.16973417]
[1764557281163,0.01338926,86697.0,86696.0,0.001]
[1764557281752,0.24407774,86697.0,86696.0,0.001]
[1764557281964,0.01338926,86697.0,86696.0,0.001]
[1764557282325,0.01699732,86697.0,86696.0,0.001]
[1764557283573,0.002,86697.0,86696.0,0.16251]
[1764557283750,0.00936,86697.0,86696.0,0.25243037]
[1764557283949,0.002,86697.0,86696.0,0.25243037]
[1764557284155,0.00936,86697.0,86696.0,0.25243037]
[1764557284357,0.002,86697.0,86696.0,0.25243037]
[1764557284562,0.06134029,86717.0,86696.0,0.25243037]
[1764557284563,0.02457395,86719.0,86716.0,0.01153189]
[1764557284908,0.02457395,86719.0,86718.0,0.23063262]
[1764557284909,0.00011802,86719.0,86718.0,0.23063262]
[1764557285159,0.00011802,86719.0,86718.0,0.39214262]
[1764557285301,0.00011802,86719.0,86718.0,0.50584553]
[1764557286458,0.00011802,86719.0,86718.0,0.50884553]
[1764557286459,0.00111802,86719.0,86718.0,0.50884553]
[1764557286680,0.01150728,86719.0,86716.0,0.01153189]
[1764557286880,0.01150728,86719.0,86703.0,0.01153362]
[1764557286881,0.01153256,86711.0,86703.0,0.01153362]
[1764557287083,0.01153189,86716.0,86705.0,0.01153336]
[1764557287084,0.01153282,86709.0,86705.0,0.01153336]
[1764557287399,0.01138926,86706.0,86705.0,0.01153336]
[1764557287774,0.01138926,86706.0,86705.0,0.07544336]
[1764557287986,0.01138926,86706.0,86705.0,0.01153336]
[1764557288159,0.01138926,86706.0,86705.0,0.07870349]
[1764557288571,0.01138926,86706.0,86705.0,0.06717013]
[1764557288749,0.01138926,86706.0,86705.0,0.001]
[1764557288952,0.01187926,86706.0,86705.0,0.001]
[1764557289149,0.01138926,86702.0,86701.0,0.01153389]
[1764557289360,0.00049,86706.0,86701.0,0.01153389]
[1764557289361,0.002,86706.0,86705.0,0.0484]
[1764557289562,0.01338926,86706.0,86705.0,0.0484]
[1764557289762,0.00736,86710.0,86708.0,0.23065922]
[1764557290005,0.01874926,86709.0,86708.0,0.23065922]
[1764557291591,0.00736,86709.0,86708.0,0.29456922]
[1764557291926,0.02556,86718.0,86715.0,0.24217102]
[1764557292136,0.00736,86717.0,86715.0,0.01153203]
[1764557292428,0.00049,86716.0,86714.0,0.01153216]
[1764557292693,0.01138926,86715.0,86714.0,0.01153216]
[1764557292896,0.03694926,86715.0,86714.0,0.01153216]
[1764557293047,0.00736,86717.0,86709.0,0.24218921]
[1764557293048,0.01138926,86710.0,86709.0,0.01153282]
[1764557293977,0.01138926,86710.0,86709.0,0.07544282]
[1764557294174,0.01138926,86715.0,86714.0,0.01153216]
[1764557294696,0.01138926,86715.0,86714.0,0.07544216]
[1764557294908,0.01338926,86715.0,86714.0,0.07644216]
[1764557295054,0.01338926,86715.0,86714.0,0.18946739]
[1764557295654,0.00736,86717.0,86715.0,0.2306406]
[1764557296070,0.00736,86717.0,86716.0,0.06391]
[1764557296713,0.00736,86717.0,86715.0,0.2306406]
[1764557296714,0.01138926,86716.0,86715.0,0.2306406]
[1764557296893,0.00736,86717.0,86715.0,0.33776223]
[1764557297094,0.01138926,86716.0,86715.0,0.33776223]
[1764557297320,0.00736,86717.0,86715.0,0.33776223]
[1764557297540,0.01874926,86717.0,86715.0,0.33776223]
[1764557297773,0.01138926,86716.0,86715.0,0.33776223]
[1764557297965,0.01138926,86716.0,86715.0,0.33876223]
[1764557298292,0.00936,86717.0,86715.0,0.33876223]
[1764557298494,0.00936,86717.0,86716.0,0.10653127]
[1764557298758,0.00936,86717.0,86715.0,0.2316406]
[1764557298759,0.01138926,86715.0,86714.0,0.24217294]
[1764557299352,0.00736,86717.0,86716.0,0.23063794]
[1764557299550,0.01874926,86717.0,86716.0,0.23063794]